bitfinex-derivatives/quotes_BTCF0:USTF0_20241010
["timestamp","ask_amount","ask_price","bid_price","bid_amount"]
[1728519526394,0.082668,60534.0,60528.0,0.1181503]
[1728519526395,0.082675,60529.0,60528.0,0.1181503]
[1728519526697,0.382675,60529.0,60528.0,0.1181503]
[1728519526997,0.382675,60529.0,60528.0,0.1156723]
[1728519527299,0.192675,60529.0,60528.0,0.1156723]
[1728519527597,0.11,60529.0,60528.0,0.1983483]
[1728519527798,0.11,60529.0,60528.0,0.1993483]
[1728519527993,0.11,60529.0,60528.0,0.2013483]
[1728519528294,0.11,60529.0,60528.0,0.41719762]
[1728519528497,0.111,60529.0,60528.0,0.5970962]
[1728519528795,0.04,60529.0,60528.0,1.0100602]
[1728519528996,0.04,60529.0,60528.0,1.0937362]
[1728519530003,0.04,60529.0,60528.0,1.09373292]
[1728519530388,0.082654,60545.0,60538.0,0.082662]
[1728519530598,0.11,60545.0,60544.0,0.5508]
[1728519530799,0.11,60545.0,60544.0,0.57664267]
[1728519530992,0.11,60545.0,60544.0,0.5508]
[1728519531392,0.192653,60545.0,60544.0,0.5508]
[1728519531600,0.206653,60545.0,60544.0,0.5508]
[1728519531804,0.206653,60545.0,60544.0,0.3608]
[1728519532914,0.220653,60545.0,60544.0,0.3608]
[1728519533794,0.206653,60545.0,60544.0,0.3618]
[1728519534400,0.204653,60545.0,60544.0,0.3618]
[1728519534707,0.203653,60545.0,60544.0,0.3618]
[1728519534902,0.202653,60545.0,60544.0,0.3618]
[1728519535108,0.392653,60545.0,60544.0,0.3618]
[1728519536102,0.392653,60545.0,60544.0,0.4268085]
[1728519536103,0.391653,60545.0,60544.0,0.4268085]
[1728519536705,0.391653,60545.0,60537.0,0.00809875]
[1728519536706,0.082668,60534.0,60533.0,0.0115]
[1728519537002,0.082669,60533.0,60532.0,0.08267]
[1728519537196,0.202669,60533.0,60532.0,0.08267]
[1728519537393,0.202669,60533.0,60532.0,0.10851786]
[1728519537903,0.202669,60533.0,60532.0,0.08267]
[1728519538204,0.202669,60533.0,60532.0,0.08367]
[1728519539404,0.202669,60533.0,60532.0,0.001]
[1728519539601,0.202669,60533.0,60532.0,0.003]
[1728519540502,0.202669,60533.0,60532.0,0.002]
[1728519540700,0.082671,60532.0,60531.0,0.0024779]
[1728519540904,0.182671,60532.0,60531.0,0.0024779]
[1728519542809,0.182671,60532.0,60531.0,0.05196569]
[1728519543503,0.182671,60532.0,60531.0,0.05296569]
[1728519543897,0.184671,60532.0,60531.0,0.05296569]
[1728519544096,0.184671,60532.0,60531.0,0.05048779]
[1728519544303,0.102,60532.0,60531.0,0.28177341]
[1728519544512,0.102,60532.0,60531.0,0.30762242]
[1728519544710,0.102,60532.0,60531.0,0.11762242]
[1728519545514,0.103,60532.0,60531.0,0.30662242]
[1728519546012,0.103,60532.0,60531.0,0.28077341]
[1728519546407,0.101,60532.0,60531.0,0.28277341]
[1728519546607,0.101,60532.0,60531.0,0.71846029]
[1728519547108,0.1,60532.0,60531.0,0.71846029]
[1728519547305,0.101,60532.0,60531.0,0.72046029]
[1728519547806,0.102,60532.0,60531.0,0.34077341]
[1728519548205,0.101,60532.0,60531.0,0.34077341]
[1728519548813,0.1,60532.0,60531.0,0.33677341]
[1728519549012,0.1,60532.0,60531.0,0.25410141]
[1728519549908,0.1,60532.0,60531.0,0.25510141]
[1728519552713,0.182671,60532.0,60531.0,0.001]
[1728519553098,0.182671,60532.0,60531.0,0.02684872]
[1728519553313,0.182671,60532.0,60531.0,0.001]
[1728519554406,0.185671,60532.0,60531.0,0.001]
[1728519555108,0.183671,60532.0,60531.0,0.001]
[1728519555808,0.183671,60532.0,60530.0,0.03001377]
[1728519556015,0.187671,60532.0,60529.0,0.082675]
[1728519556206,0.105,60532.0,60529.0,0.082675]
[1728519556407,0.105,60532.0,60529.0,0.02919648]
[1728519556718,0.105,60532.0,60529.0,0.08249642]
[1728519556719,0.082674,60530.0,60529.0,0.08249642]
[1728519556913,0.202674,60530.0,60529.0,0.16755715]
[1728519557100,0.202674,60530.0,60529.0,0.16755939]
[1728519557298,0.12,60530.0,60529.0,0.25023439]
[1728519557610,0.12,60530.0,60529.0,0.16773573]
[1728519559112,0.12,60530.0,60529.0,0.16973573]
[1728519559813,0.12,60530.0,60529.0,0.16773573]
[1728519560114,0.121,60530.0,60529.0,0.35171949]
[1728519560507,0.122,60530.0,60529.0,0.35171949]
[1728519561613,0.122,60530.0,60529.0,0.35172789]
[1728519563617,0.122,60530.0,60529.0,0.45074342]
[1728519564218,0.122,60530.0,60529.0,0.36806842]
[1728519564421,0.204674,60530.0,60529.0,0.36806842]
[1728519564621,0.204674,60530.0,60529.0,0.18808466]
[1728519565012,0.394674,60530.0,60529.0,0.18808466]
[1728519565419,0.393674,60530.0,60529.0,0.18408466]
[1728519565618,0.394674,60530.0,60529.0,0.18808466]
[1728519565924,0.394674,60530.0,60529.0,0.08906913]
[1728519566415,0.393674,60530.0,60529.0,0.08506913]
[1728519566621,0.393674,60530.0,60529.0,0.08535439]
[1728519567227,0.754474,60530.0,60529.0,0.08535439]
[1728519570437,0.754474,60530.0,60512.0,0.0024784]
[1728519570438,0.082689,60519.0,60512.0,0.0024784]
[1728519570634,0.082695,60514.0,60513.0,0.00096]
[1728519570931,0.563495,60514.0,60513.0,0.02585485]
[1728519571324,0.082697,60513.0,60512.0,0.0024784]
[1728519571518,0.182697,60513.0,60512.0,0.0024784]
[1728519571718,0.182697,60513.0,60502.0,0.3608]
[1728519571719,1.38576,60513.0,60511.0,0.03050137]
[1728519571928,1.38576,60513.0,60500.0,0.0115]
[1728519571929,0.082712,60502.0,60500.0,0.0115]
[1728519572223,0.192712,60502.0,60501.0,0.17187798]
[1728519574331,0.193712,60502.0,60501.0,0.17187798]
[1728519574531,0.194712,60502.0,60501.0,0.06036023]
[1728519575232,0.194712,60502.0,60501.0,0.06036226]
[1728519575629,0.194712,60502.0,60490.0,0.082727]
[1728519575630,0.193712,60502.0,60490.0,0.082727]
[1728519575833,0.19,60491.0,60489.0,0.00084]
[1728519576026,0.3,60491.0,60488.0,0.03007543]
[1728519576327,0.082731,60488.0,60484.0,0.0083907]
[1728519576524,0.192731,60488.0,60487.0,0.03195896]
[1728519576719,0.192731,60488.0,60487.0,0.00247938]
[1728519577229,0.553531,60488.0,60487.0,0.00247938]
[1728519577431,0.4708,60488.0,60487.0,0.19]
[1728519577630,0.11,60488.0,60487.0,0.19]
[1728519577833,0.111,60488.0,60487.0,0.19]
[1728519578025,0.111,60488.0,60486.0,0.02981028]
[1728519578235,0.4718,60488.0,60480.0,0.28]
[1728519578526,0.112,60488.0,60486.0,0.19]
[1728519578726,0.112,60488.0,60487.0,0.082732]
[1728519578934,0.112,60488.0,60487.0,0.2709707]
[1728519579327,0.111,60488.0,60487.0,0.2709707]
[1728519579828,0.112,60488.0,60487.0,0.2709707]
[1728519581134,0.112,60488.0,60487.0,0.6317707]
[1728519581429,0.112,60488.0,60487.0,1.7277307]
[1728519582733,0.112,60488.0,60487.0,1.9177307]
[1728519584229,0.112,60488.0,60487.0,1.94781109]
[1728519586626,0.112,60488.0,60487.0,1.34781109]
[1728519589237,0.112,60488.0,60487.0,1.37367445]
[1728519590925,0.112,60488.0,60487.0,0.87771445]
[1728519592136,0.112,60488.0,60487.0,0.85185109]
[1728519593532,0.112,60488.0,60487.0,0.90107981]
[1728519594039,0.36184001,60497.0,60495.0,0.082721]
[1728519594239,0.4108,60497.0,60496.0,0.3217]
[1728519594739,0.4108,60497.0,60496.0,0.4542]
[1728519594934,0.41035968,60497.0,60496.0,0.53692]
[1728519595250,0.41135968,60497.0,60496.0,0.53692]
[1728519595542,0.41135968,60497.0,60496.0,0.53792]
[1728519595543,0.41235968,60497.0,60496.0,0.53792]
[1728519596840,0.41235968,60497.0,60496.0,0.53892]
[1728519597227,0.052,60497.0,60496.0,0.53892]
[1728519599535,0.052,60497.0,60496.0,0.62360578]
[1728519599742,0.082705,60507.0,60496.0,0.64614427]
[1728519599931,0.48328034,60504.0,60503.0,0.08271]
[1728519600538,0.48328034,60504.0,60503.0,0.36271]
[1728519601043,0.12348034,60504.0,60503.0,0.36271]
[1728519601342,0.12348034,60504.0,60503.0,0.6265188]
[1728519601532,0.12348034,60504.0,60503.0,0.5440259]
[1728519601732,0.12348034,60504.0,60503.0,0.5460259]
[1728519602040,0.12448034,60504.0,60503.0,0.5460259]
[1728519602234,0.12448034,60504.0,60503.0,0.63044776]
[1728519602846,0.12348034,60504.0,60503.0,0.63044776]
[1728519603142,0.12448034,60504.0,60503.0,0.63244776]
[1728519604146,0.204709,60504.0,60503.0,0.284]
[1728519604440,0.204709,60504.0,60503.0,0.004]
[1728519604646,0.204709,60504.0,60503.0,0.07002233]
[1728519604844,0.394709,60504.0,60503.0,0.004]
[1728519605345,0.394709,60504.0,60503.0,0.05352005]
[1728519605546,0.394709,60504.0,60503.0,0.004]
[1728519611546,0.394709,60504.0,60503.0,0.27671]
[1728519611547,0.122,60504.0,60503.0,0.27671]
[1728519611740,0.122,60504.0,60503.0,0.63751]
[1728519612748,0.0038,60513.0,60503.0,1.92441217]
[1728519613049,0.04,60513.0,60512.0,0.082698]
[1728519613239,0.04,60513.0,60512.0,0.33904079]
[1728519613439,0.04,60513.0,60512.0,0.61904079]
[1728519614049,0.041,60513.0,60512.0,0.61904079]
[1728519615250,0.041,60513.0,60512.0,0.62004079]
[1728519615754,0.041,60513.0,60512.0,0.62104079]
[1728519615755,0.04,60513.0,60512.0,0.62104079]
[1728519615947,0.36327992,60517.0,60516.0,0.082693]
[1728519615948,0.00247992,60517.0,60516.0,0.082693]
[1728519616151,0.00247992,60517.0,60516.0,0.633493]
[1728519616152,0.05670595,60517.0,60516.0,0.633493]
[1728519616349,0.05670595,60517.0,60516.0,0.80573972]
[1728519616743,0.05670595,60517.0,60516.0,1.90145972]
[1728519617055,0.05970595,60517.0,60516.0,1.98516732]
[1728519617957,0.05970595,60517.0,60516.0,2.26516732]
[1728519618248,0.06370595,60517.0,60516.0,2.26516732]
[1728519618647,0.06370595,60517.0,60516.0,1.16944732]
[1728519618848,0.06370595,60517.0,60516.0,1.08573972]
[1728519619051,0.06370595,60517.0,60516.0,0.89573972]
[1728519619557,0.06370595,60517.0,60516.0,0.81304672]
[1728519619854,0.06370595,60517.0,60516.0,0.89573972]
[1728519620153,0.06370595,60517.0,60516.0,1.08573972]
[1728519621341,0.06370595,60517.0,60516.0,0.45224672]
[1728519621546,0.14639795,60517.0,60515.0,0.06583315]
[1728519621755,0.082694,60515.0,60514.0,0.06583315]
[1728519622054,0.202694,60515.0,60514.0,0.28]
[1728519622252,0.12,60515.0,60514.0,0.28]
[1728519622441,0.12,60515.0,60512.0,0.10444909]
[1728519622442,0.12,60515.0,60513.0,0.14853015]
[1728519623048,0.121,60515.0,60514.0,0.06583315]
[1728519623548,0.122,60515.0,60514.0,0.06583315]
[1728519624651,0.122,60515.0,60513.0,0.06583315]
[1728519624950,0.082697,60513.0,60511.0,0.42663315]
[1728519625155,0.272698,60512.0,60511.0,0.3608]
[1728519625350,0.382698,60512.0,60511.0,0.3608]
[1728519626754,0.192698,60512.0,60511.0,0.3628]
[1728519627356,0.192698,60512.0,60511.0,0.3648]
[1728519627556,0.11,60512.0,60511.0,0.276699]
[1728519627752,0.11,60512.0,60511.0,0.637499]
[1728519628062,0.11,60512.0,60511.0,1.012199]
[1728519628263,0.242672,60531.0,60522.0,0.082684]
[1728519628466,0.3608,60540.0,60522.0,0.082684]
[1728519628467,0.12,60523.0,60522.0,0.19]
[1728519628655,0.12,60523.0,60522.0,0.82228098]
[1728519628850,0.12,60523.0,60522.0,1.10228098]
[1728519629364,0.12,60523.0,60522.0,1.18496498]
[1728519629554,0.12,60523.0,60522.0,1.18596498]
[1728519630056,0.12,60523.0,60522.0,1.1023931]
[1728519630258,0.12,60523.0,60522.0,0.9123931]
[1728519630658,0.12,60523.0,60522.0,0.9133931]
[1728519631255,0.12,60523.0,60522.0,0.9163931]
[1728519631450,0.12,60523.0,60522.0,0.9193931]
[1728519631846,0.12,60523.0,60522.0,1.1093931]
[1728519632064,0.12,60523.0,60522.0,0.8293931]
[1728519633655,0.12,60523.0,60522.0,0.6393931]
[1728519633860,0.12,60523.0,60522.0,0.48073859]
[1728519638353,0.12,60523.0,60522.0,0.67073859]
[1728519638761,0.112,60523.0,60522.0,0.67073859]
[1728519638951,0.09067531,60523.0,60522.0,0.66283006]
[1728519639156,0.09067531,60523.0,60522.0,0.85283006]
[1728519639565,0.09067531,60523.0,60522.0,0.66283006]
[1728519640159,0.09067531,60523.0,60522.0,0.57231292]
[1728519640360,0.09067531,60523.0,60522.0,0.57242011]
[1728519640663,0.09067531,60523.0,60522.0,0.57123047]
[1728519641462,0.09067531,60523.0,60522.0,0.57251754]
[1728519642265,1.18635531,60523.0,60522.0,0.008]
[1728519642566,1.26903831,60523.0,60522.0,0.0494932]
[1728519642763,0.082684,60522.0,60521.0,0.04949434]
[1728519642970,0.08269,60518.0,60516.0,0.06598614]
[1728519643269,0.4833,60517.0,60516.0,0.06598614]
[1728519643466,0.5933,60517.0,60516.0,0.06598614]
[1728519643864,0.5933,60517.0,60510.0,0.46330186]
[1728519643865,0.5933,60517.0,60515.0,0.06598614]
[1728519644170,0.5933,60517.0,60514.0,0.06598614]
[1728519644369,0.1239,60516.0,60510.0,0.12851713]
[1728519644569,0.082697,60513.0,60510.0,0.12851713]
[1728519644766,0.192697,60513.0,60510.0,0.12851713]
[1728519644965,0.11,60513.0,60510.0,0.12851713]
[1728519645171,0.3608,60511.0,60510.0,0.09870186]
[1728519645373,0.3608,60511.0,60506.0,0.082706]
[1728519645374,0.4608,60511.0,60506.0,0.08248866]
[1728519645571,0.272705,60507.0,60506.0,0.08248866]
[1728519645870,0.382705,60507.0,60506.0,0.08248866]
[1728519646063,1.288505,60507.0,60506.0,0.08248866]
[1728519647363,1.288505,60507.0,60506.0,0.08548866]
[1728519648067,1.289505,60507.0,60506.0,0.08348866]
[1728519648371,1.290505,60507.0,60506.0,0.08648866]
[1728519648973,0.194705,60507.0,60506.0,0.08648866]
[1728519649364,0.112,60507.0,60506.0,0.08648866]
[1728519649564,0.112,60507.0,60506.0,0.086706]
[1728519651270,0.0038,60518.0,60507.0,0.082705]
[1728519651573,0.13,60518.0,60517.0,0.272691]
[1728519651873,0.13,60518.0,60517.0,0.552691]
[1728519652475,0.13,60518.0,60517.0,0.272691]
[1728519652990,0.13,60518.0,60517.0,0.19]
[1728519653672,0.135,60518.0,60517.0,0.19]
[1728519654075,0.138,60518.0,60517.0,0.19]
[1728519655177,0.133,60518.0,60517.0,0.19]
[1728519655369,0.13,60518.0,60517.0,0.192]
[1728519655569,0.134,60518.0,60517.0,0.192]
[1728519656268,0.134,60518.0,60517.0,0.002]
[1728519656468,0.21669,60518.0,60517.0,0.002]
[1728519656976,0.21269,60518.0,60517.0,0.001]
[1728519657167,0.21269,60518.0,60517.0,0.004]
[1728519657168,1.49841,60518.0,60517.0,0.004]
[1728519657363,1.49841,60518.0,60509.0,0.0038]
[1728519657364,0.082698,60512.0,60509.0,0.0038]
[1728519657565,0.392698,60512.0,60506.0,0.082706]
[1728519657763,1.40576,60512.0,60503.0,0.08651]
[1728519657968,0.082706,60506.0,60503.0,0.11220703]
[1728519658167,0.202706,60506.0,60503.0,0.11220703]
[1728519658586,0.082708,60505.0,60503.0,0.11220703]
[1728519658768,0.202708,60505.0,60503.0,0.11220703]
[1728519658967,0.202708,60505.0,60503.0,0.02949703]
[1728519659168,0.202708,60505.0,60501.0,0.3608]
[1728519660277,0.203708,60505.0,60503.0,0.002]
[1728519660778,0.443509,60504.0,60503.0,0.001]
[1728519660972,0.082713,60502.0,60499.0,0.00247931]
[1728519661281,0.202713,60502.0,60499.0,0.00247931]
[1728519662178,0.082713,60501.0,60499.0,0.00247931]
[1728519662381,0.202713,60501.0,60499.0,0.00247931]
[1728519662582,0.082714,60500.0,60499.0,0.00247931]
[1728519662775,0.12,60500.0,60499.0,0.00247931]
[1728519663676,0.12,60500.0,60499.0,0.00347931]
[1728519664174,0.12,60500.0,60499.0,0.00447931]
[1728519664375,0.121,60500.0,60499.0,0.00447931]
[1728519665083,0.121,60500.0,60499.0,0.00347931]
[1728519665271,0.122,60500.0,60499.0,0.00447931]
[1728519666071,0.122,60500.0,60499.0,0.29447931]
[1728519669275,0.122,60500.0,60499.0,0.00447931]
[1728519670479,0.122,60500.0,60499.0,0.08719531]
[1728519675989,0.122,60500.0,60499.0,0.00447931]
[1728519676490,0.204714,60500.0,60499.0,0.00447931]
[1728519679589,0.122,60500.0,60499.0,0.08719531]
[1728519680693,0.122,60500.0,60499.0,0.084716]
[1728519684385,0.122,60500.0,60499.0,0.445516]
[1728519684587,0.122,60500.0,60499.0,0.61999293]
[1728519685181,0.122,60500.0,60499.0,0.70439603]
[1728519685384,0.122,60500.0,60499.0,0.80501623]
[1728519685592,0.122,60500.0,60499.0,1.08501623]
[1728519685794,0.122,60500.0,60499.0,0.72421623]
[1728519685996,0.122,60500.0,60499.0,0.62359603]
[1728519686295,0.122,60500.0,60499.0,0.72430015]
[1728519686988,0.122,60500.0,60499.0,0.62359603]
[1728519687389,0.122,60500.0,60499.0,0.72430642]
[1728519688491,0.122,60500.0,60499.0,0.62359603]
[1728519689796,1.490594,60500.0,60499.0,0.002]
[1728519689991,1.490594,60500.0,60493.0,0.0038]
[1728519689992,1.490594,60500.0,60495.0,0.08266109]
[1728519690192,1.490594,60500.0,60492.0,0.09918172]
[1728519690193,0.082724,60493.0,60492.0,0.09918172]
[1728519690515,0.192724,60493.0,60492.0,0.09918172]
[1728519692101,0.082725,60492.0,60491.0,0.08266109]
[1728519692294,0.182725,60492.0,60491.0,0.08266109]
[1728519692601,0.082727,60491.0,60490.0,0.12883414]
[1728519692788,0.563527,60491.0,60490.0,0.02984399]
[1728519692994,0.082729,60489.0,60488.0,0.08259067]
[1728519693300,0.202729,60489.0,60488.0,0.08259067]
[1728519693995,0.082731,60488.0,60487.0,0.08259067]
[1728519694202,0.192731,60488.0,60487.0,0.16776174]
[1728519695301,0.192731,60488.0,60487.0,0.08259067]
[1728519696199,0.111,60488.0,60487.0,0.16532267]
[1728519696396,0.08272,60496.0,60491.0,0.082726]
[1728519696596,0.19272,60496.0,60495.0,0.19]
[1728519696803,0.082722,60495.0,60491.0,0.19]
[1728519697102,0.202722,60495.0,60491.0,0.19]
[1728519697303,0.202722,60495.0,60492.0,0.28]
[1728519697504,0.202722,60495.0,60492.0,0.28818273]
[1728519698207,0.082724,60493.0,60492.0,0.28818273]
[1728519698505,0.202724,60493.0,60492.0,0.28818273]
[1728519698800,0.202724,60493.0,60492.0,0.00818273]
[1728519699501,0.203724,60493.0,60492.0,0.00918273]
[1728519699803,0.204724,60493.0,60492.0,0.01018273]
[1728519704199,0.565524,60493.0,60492.0,0.002]
[1728519720909,0.565524,60493.0,60492.0,0.09551352]
[1728519721115,0.204724,60493.0,60492.0,0.09551352]
[1728519721512,0.204724,60493.0,60492.0,0.09291967]
[1728519721714,0.204724,60493.0,60492.0,0.09548601]
[1728519722610,0.204724,60493.0,60492.0,0.09292062]
[1728519723218,0.204724,60493.0,60492.0,0.17816726]
[1728519723411,0.204724,60493.0,60492.0,0.09548728]
[1728519724021,0.204724,60493.0,60492.0,0.09545133]
[1728519724526,0.204724,60493.0,60492.0,0.08721069]
[1728519724722,0.204724,60493.0,60492.0,0.002]
[1728519724723,0.556024,60493.0,60492.0,0.002]
[1728519728122,0.195224,60493.0,60492.0,0.002]
[1728519728320,0.556024,60493.0,60492.0,0.002]
[1728519731520,0.556024,60493.0,60492.0,0.08468624]
[1728519732324,0.556024,60493.0,60492.0,0.002]
[1728519733223,0.556024,60493.0,60492.0,0.08468624]
[1728519733728,0.556024,60493.0,60492.0,0.002]
[1728519734222,0.556024,60493.0,60492.0,0.17005853]
[1728519734426,0.556024,60493.0,60492.0,0.17004885]
[1728519735427,0.556024,60493.0,60492.0,0.08471183]
[1728519736223,0.4828,60493.0,60492.0,0.36575667]
[1728519736426,0.3608,60498.0,60492.0,0.54588906]
[1728519736617,0.12,60498.0,60494.0,0.19]
[1728519736819,0.12,60498.0,60495.0,0.18686252]
[1728519737023,0.12,60498.0,60496.0,0.08533749]
[1728519737024,0.082718,60497.0,60496.0,0.08533749]
[1728519737227,0.202718,60497.0,60496.0,0.08533749]
[1728519738329,0.12,60497.0,60496.0,0.16805749]
[1728519738530,0.121,60497.0,60496.0,0.16905749]
[1728519738722,0.121,60497.0,60496.0,0.30040008]
[1728519738923,0.122,60497.0,60496.0,0.30240008]
[1728519739431,0.122,60497.0,60496.0,0.20117038]
[1728519739622,0.122,60497.0,60496.0,0.11583289]
[1728519740024,0.122,60497.0,60496.0,0.11573289]
[1728519740329,0.0024806,60513.0,60496.0,0.11573289]
[1728519740330,0.0024806,60513.0,60496.0,1.64626195]
[1728519740524,0.1951786,60513.0,60508.0,0.082703]
[1728519740727,0.1951786,60513.0,60509.0,0.1346]
[1728519741023,0.1124806,60513.0,60509.0,0.1346]
[1728519741224,0.1124806,60513.0,60511.0,0.082699]
[1728519741419,0.1134806,60513.0,60511.0,0.082699]
[1728519741622,0.1144806,60513.0,60511.0,0.082699]
[1728519742022,0.1144806,60513.0,60509.0,0.1346]
[1728519742023,0.082698,60512.0,60509.0,0.1346]
[1728519742320,0.192698,60512.0,60509.0,0.1356]
[1728519742530,0.11,60512.0,60510.0,0.0827]
[1728519742730,0.11,60512.0,60511.0,0.001]
[1728519743931,0.11,60512.0,60511.0,0.003]
[1728519744316,0.11,60512.0,60511.0,0.085699]
[1728519744717,0.11,60512.0,60511.0,0.084699]
[1728519745531,0.11,60512.0,60511.0,0.086699]
[1728519747825,0.11,60512.0,60511.0,0.26297313]
[1728519749332,0.11,60512.0,60511.0,0.32880651]
[1728519749938,0.11,60512.0,60511.0,0.26297313]
[1728519751538,0.11,60512.0,60511.0,0.32877995]
[1728519752134,0.192698,60512.0,60511.0,0.18027413]
[1728519753233,0.192698,60512.0,60511.0,0.004]
[1728519753436,0.11,60512.0,60511.0,0.004]
[1728519753640,0.11,60512.0,60511.0,0.086699]
[1728519754432,0.192698,60512.0,60511.0,0.004]
[1728519757231,0.11,60512.0,60511.0,0.086699]
[1728519757938,0.192698,60512.0,60511.0,0.004]
[1728519759934,0.11,60512.0,60511.0,0.086699]
[1728519761132,0.11,60512.0,60511.0,0.15250582]
[1728519762347,0.11,60512.0,60511.0,0.086699]
[1728519764641,0.11,60512.0,60511.0,0.216699]
[1728519765342,0.192698,60512.0,60511.0,0.004]
[1728519766944,0.192698,60512.0,60508.0,0.08236535]
[1728519766945,1.288458,60512.0,60508.0,0.08236535]
[1728519767139,0.5508,60510.0,60503.0,0.09890227]
[1728519767340,0.082709,60504.0,60503.0,0.09890227]
[1728519767540,0.202709,60504.0,60503.0,0.09890227]
[1728519767742,0.455009,60504.0,60503.0,0.09890227]
[1728519768446,0.455009,60504.0,60503.0,0.09990227]
[1728519768748,0.456009,60504.0,60503.0,0.003]
[1728519769143,0.456009,60504.0,60503.0,0.002]
[1728519769443,0.457009,60504.0,60503.0,0.003]
[1728519769646,0.457009,60504.0,60503.0,0.0029]
[1728519771247,0.3743,60504.0,60503.0,0.0029]
[1728519771442,0.122,60504.0,60503.0,0.27561]
[1728519772440,0.122,60504.0,60503.0,0.08561]
[1728519773040,0.204709,60504.0,60503.0,0.08561]
[1728519773750,0.134109,60504.0,60503.0,0.08561]
[1728519774243,0.134109,60504.0,60503.0,0.0029]
[1728519774449,0.494909,60504.0,60503.0,0.0029]
[1728519775450,0.082718,60497.0,60496.0,0.0039]
[1728519775645,0.082725,60492.0,60491.0,0.11519859]
[1728519775851,0.563525,60492.0,60491.0,0.11519859]
[1728519776451,0.699525,60492.0,60491.0,0.11519859]
[1728519777751,0.700525,60492.0,60491.0,0.11519859]
[1728519778954,0.701525,60492.0,60491.0,0.11519859]
[1728519783250,0.565525,60492.0,60491.0,0.19792559]
[1728519783858,0.565525,60492.0,60491.0,0.082727]
[1728519787466,0.4828,60492.0,60491.0,0.272727]
[1728519787651,0.4828,60492.0,60491.0,0.405927]
[1728519787848,0.4828,60492.0,60491.0,0.4553307]
[1728519788347,0.122,60492.0,60491.0,0.405927]
[1728519788553,0.122,60492.0,60491.0,0.47179641]
[1728519788753,0.122,60492.0,60491.0,0.405927]
[1728519788956,0.122,60492.0,60491.0,0.95705365]
[1728519789259,0.122,60492.0,60491.0,1.04110036]
[1728519789760,0.122,60492.0,60491.0,2.13702036]
[1728519792364,0.122,60492.0,60491.0,1.53702036]
[1728519792748,0.122,60492.0,60491.0,2.13702036]
[1728519792958,0.122,60492.0,60491.0,1.53702036]
[1728519795165,0.122,60492.0,60491.0,1.04110036]
[1728519795577,0.122,60492.0,60491.0,2.13702036]
[1728519795769,0.122,60492.0,60491.0,1.53702036]
[1728519796565,0.122,60492.0,60491.0,1.63594]
[1728519797870,0.122,60492.0,60491.0,1.53702036]
[1728519798070,0.122,60492.0,60491.0,2.13702036]
[1728519798371,0.122,60492.0,60491.0,2.23594]
[1728519798564,0.122,60492.0,60491.0,2.23600883]
[1728519799165,0.122,60492.0,60491.0,1.63600883]
[1728519799362,0.122,60492.0,60491.0,2.23600883]
[1728519799564,0.082716,60499.0,60491.0,2.23600883]
[1728519799565,0.0039,60501.0,60500.0,0.082714]
[1728519799878,0.03,60501.0,60500.0,0.25668568]
[1728519800167,0.03,60501.0,60500.0,0.72668568]
[1728519800366,0.03,60501.0,60500.0,0.7350918]
[1728519800565,0.03,60501.0,60500.0,1.8309718]
[1728519800964,0.031,60501.0,60500.0,1.8309718]
[1728519801261,0.13,60519.0,60500.0,1.99628669]
[1728519801464,0.13,60519.0,60516.0,0.272693]
[1728519801465,0.12247951,60517.0,60516.0,0.272693]
[1728519802367,0.12447951,60517.0,60516.0,0.272693]
[1728519804072,0.13047951,60517.0,60516.0,0.272693]
[1728519804873,0.13047951,60517.0,60516.0,0.30282986]
[1728519811174,0.13047951,60517.0,60516.0,0.03013686]
[1728519811377,0.13047951,60517.0,60514.0,0.3608]
[1728519811760,0.13047951,60517.0,60514.0,0.3607]
[1728519812570,0.12647951,60517.0,60514.0,0.3607]
[1728519812776,0.13047951,60517.0,60514.0,0.3607]
[1728519812972,0.21317051,60517.0,60514.0,0.3607]
[1728519813275,0.21317051,60517.0,60514.0,0.39037023]
[1728519813461,0.272694,60515.0,60514.0,0.02967023]
[1728519813667,0.272694,60515.0,60505.0,0.094207]
[1728519813668,0.082699,60512.0,60510.0,0.04935642]
[1728519813877,0.082699,60511.0,60510.0,0.04935642]
[1728519814074,0.202699,60511.0,60510.0,0.04935642]
[1728519814773,0.202699,60511.0,60510.0,0.05035642]
[1728519815575,0.202699,60511.0,60510.0,0.001]
[1728519816265,0.202699,60511.0,60510.0,0.003]
[1728519818774,0.202699,60511.0,60510.0,0.06880857]
[1728519819563,0.202699,60511.0,60510.0,0.003]
[1728519820277,0.12,60511.0,60510.0,0.003]
[1728519820468,0.12,60511.0,60510.0,0.085701]
[1728519820774,0.12,60511.0,60510.0,0.275701]
[1728519824372,0.12,60511.0,60510.0,0.003]
[1728519824573,0.202699,60511.0,60510.0,0.003]
[1728519825673,0.392699,60511.0,60510.0,0.003]
[1728519825871,0.082702,60509.0,60508.0,0.06598275]
[1728519826082,0.563502,60509.0,60503.0,0.10119193]
[1728519826281,0.443509,60504.0,60503.0,0.09871285]
[1728519826469,0.4808,60504.0,60496.0,0.00824628]
[1728519826678,0.443518,60497.0,60496.0,0.00824628]
[1728519826871,0.443518,60497.0,60491.0,0.08238735]
[1728519826872,0.4708,60497.0,60491.0,0.08238735]
[1728519827077,0.4708,60497.0,60490.0,0.08238735]
[1728519827278,0.4708,60497.0,60490.0,0.02907894]
[1728519827688,0.082726,60492.0,60488.0,0.09089933]
[1728519827982,0.082726,60492.0,60488.0,0.08273]
[1728519827983,0.3608,60489.0,60488.0,0.08273]
[1728519828181,0.4808,60489.0,60488.0,0.08273]
[1728519828380,0.4808,60489.0,60488.0,0.09102675]